bitfinex/quotes_SOLUSD_20250815
["timestamp","ask_amount","ask_price","bid_price","bid_amount"]
[1755252975045,5.78823113,195.38,195.35,0.03]
[1755252975238,5.78823113,195.38,195.35,36.21]
[1755252975439,5.78823113,195.38,195.35,49.58456884]
[1755252975858,0.67,195.37,195.35,0.03]
[1755252976153,5.11875511,195.36,195.35,0.03]
[1755252976953,5.11796918,195.39,195.35,14.12456884]
[1755252977152,5.1777654,195.4,195.38,13.37456884]
[1755252977358,5.8477654,195.4,195.38,49.55456884]
[1755252978156,0.06,195.4,195.38,49.55456884]
[1755252978623,0.06,195.4,195.39,13.37456884]
[1755252979853,3.49517053,195.4,195.39,13.37456884]
[1755252981451,8.61287779,195.4,195.39,13.37456884]
[1755252982134,3.49517053,195.4,195.39,13.37456884]
[1755252982336,9.28287779,195.4,195.35,0.03]
[1755252982533,0.67,195.39,195.35,36.19]
[1755252982733,0.67,195.39,195.35,44.44636204]
[1755252982935,4.10517053,195.39,195.36,8.25636204]
[1755252983651,5.11823113,195.38,195.36,8.25636204]
[1755252983843,0.67,195.37,195.35,36.19]
[1755252984049,0.67,195.36,195.35,0.03]
[1755252984652,4.10517053,195.36,195.35,0.03]
[1755252985062,9.22392564,195.36,195.35,8.28636204]
[1755252985434,9.22392564,195.36,195.35,0.03]
[1755252985952,8.55392564,195.36,195.35,8.28636204]
[1755252986956,9.22392564,195.36,195.35,0.03]
[1755252989455,9.36608721,195.36,195.35,0.03]
[1755252989658,15.24837714,195.35,195.31,0.03]
[1755252989963,15.24837714,195.35,195.29,0.03]
[1755252989964,0.14216157,195.31,195.29,1e-08]
[1755252990164,8.25636204,195.3,195.29,1e-08]
[1755252990377,8.92636204,195.3,195.29,1e-08]
[1755252990537,24.17473918,195.3,195.29,1e-08]
[1755252990732,24.17473918,195.3,195.26,0.03]
[1755252990733,15.24837714,195.29,195.26,1e-08]
[1755252990939,15.24837714,195.26,195.24,1e-08]
[1755252991134,0.14216157,195.22,195.21,1e-08]
[1755252991546,0.80216157,195.22,195.21,1e-08]
[1755252991760,9.05852361,195.22,195.21,1e-08]
[1755252992060,0.80216157,195.22,195.21,1e-08]
[1755252992688,4.2373321,195.22,195.21,1e-08]
[1755252993870,44.91975808,195.22,195.21,1e-08]
[1755252994038,45.57975808,195.22,195.21,1e-08]
[1755252994456,3.43517053,195.22,195.21,1e-08]
[1755252994655,3.43517053,195.22,195.21,14.07223034]
[1755252995071,10.5321684,195.24,195.21,14.07223034]
[1755252995272,10.5321684,195.24,195.23,13.39223033]
[1755252995483,10.5321684,195.24,195.23,14.07223033]
[1755252995656,10.5321684,195.24,195.23,19.19439393]
[1755252995856,36.24,195.29,195.23,19.19439393]
[1755252996078,5.12006553,195.31,195.28,13.39223033]
[1755252996282,5.12006553,195.31,195.3,13.39223033]
[1755252996484,42.01982859,195.32,195.3,13.39223033]
[1755252996782,42.01982859,195.32,195.31,13.39223033]
[1755252997171,41.50199016,195.32,195.31,13.39223033]
[1755252997383,44.92342826,195.32,195.31,13.39223033]
[1755252997760,45.58342826,195.32,195.31,13.39223033]
[1755252998669,42.16199016,195.32,195.31,13.39223033]
[1755252999182,0.14216157,195.31,195.27,13.39223033]
[1755252999392,0.66,195.3,195.27,13.39223033]
[1755252999591,5.12058989,195.29,195.28,13.39223033]
[1755252999881,0.14216157,195.28,195.27,13.39223033]
[1755253000103,0.80216157,195.28,195.27,13.39223033]
[1755253000269,0.80216157,195.28,195.26,13.39223033]
[1755253000477,0.66,195.27,195.24,13.39223033]
[1755253000671,0.66,195.27,195.25,13.39223033]
[1755253000875,0.14216157,195.28,195.25,13.39223033]
[1755253001103,0.80216157,195.28,195.25,13.39223033]
[1755253001398,0.80216157,195.28,195.26,13.39223033]
[1755253001604,5.26327592,195.27,195.26,13.39223033]
[1755253001987,5.12087118,195.28,195.26,14.07223033]
[1755253002187,0.14216157,195.27,195.26,13.39223033]
[1755253002389,0.14216157,195.27,195.25,13.39223033]
[1755253002587,0.14216157,195.27,195.26,13.39223033]
[1755253002901,5.12087118,195.28,195.26,13.39223033]
[1755253003205,5.12087118,195.28,195.27,13.39223033]
[1755253003782,41.36064457,195.29,195.27,13.39223033]
[1755253003981,41.36064457,195.29,195.28,13.39223033]
[1755253004482,42.02064457,195.29,195.23,26.68]
[1755253004681,42.02064457,195.29,195.27,13.39223033]
[1755253004887,42.16280614,195.29,195.28,13.39223033]
[1755253005091,42.16280614,195.29,195.27,13.39223033]
[1755253005092,0.14216157,195.28,195.27,13.39223033]
[1755253005292,0.80216157,195.28,195.27,13.39223033]
[1755253005690,5.92301367,195.28,195.27,13.39223033]
[1755253006497,5.92301367,195.28,195.26,13.39223033]
[1755253006898,5.92301367,195.28,195.24,0.68]
[1755253006899,5.26301367,195.28,195.27,13.39223033]
[1755253008121,131.96,195.33,195.27,14.07223033]
[1755253008303,5.17954128,195.33,195.32,13.39223033]
[1755253008803,5.32170285,195.33,195.32,13.39223033]
[1755253009004,8.73730677,195.33,195.32,13.39223033]
[1755253009391,8.5951452,195.33,195.32,13.39223033]
[1755253009596,8.73730677,195.33,195.32,13.39223033]
[1755253009913,5.17954128,195.33,195.32,13.39223033]
[1755253011391,5.17954128,195.33,195.32,14.07223033]
[1755253011710,0.06,195.33,195.32,14.07223033]
[1755253016002,0.06,195.33,195.32,55.1784459]
[1755253016533,0.06,195.33,195.32,60.29824929]
[1755253017022,0.06,195.33,195.32,55.1784459]
[1755253017215,0.06,195.33,195.32,40.07223033]
[1755253020941,0.06,195.33,195.32,26.68]
[1755253021114,0.06,195.33,195.32,39.39223033]
[1755253021513,0.06,195.33,195.32,40.11223033]
[1755253022931,0.06,195.33,195.32,76.33223033]
[1755253023136,0.06,195.33,195.32,81.45203372]
[1755253023345,0.06,195.35,195.34,41.10621557]
[1755253023512,0.06,195.37,195.35,15.10621557]
[1755253023713,0.06,195.37,195.36,75.63223033]
[1755253023911,0.06,195.37,195.36,76.35223033]
[1755253025131,0.06,195.37,195.36,39.39223033]
[1755253025347,0.06,195.37,195.36,75.63223033]
[1755253025636,0.06,195.37,195.36,76.35223033]
[1755253026622,0.06,195.37,195.36,71.21059266]
[1755253027624,0.06,195.37,195.36,70.49059266]
[1755253030116,0.06,195.37,195.36,71.21059266]
[1755253030851,0.06,195.37,195.36,70.49059266]
[1755253034213,0.06,195.37,195.36,60.82868374]
[1755253034426,0.06,195.37,195.36,65.94743885]
[1755253034835,0.06,195.4,195.39,26.0]
[1755253035031,0.06,195.4,195.39,70.43059266]
[1755253035349,0.06,195.41,195.4,5.11770726]
[1755253035646,0.06,195.41,195.4,14.08829992]
[1755253037248,0.06,195.43,195.41,41.10621557]
[1755253037445,0.06,195.43,195.41,86.78855276]
[1755253038935,0.06,195.43,195.41,91.90599813]
[1755253041029,0.06,195.43,195.41,65.90599813]
[1755253041358,0.06,195.43,195.42,50.07680823]
[1755253043461,0.06,195.43,195.42,55.19399173]
[1755253044553,0.06,195.43,195.42,54.47399173]
[1755253044728,0.06,195.43,195.42,55.19399173]
[1755253045142,0.06,195.45,195.43,41.10621557]
[1755253045339,0.1,195.46,195.45,15.10621557]
[1755253045642,0.06,195.47,195.45,23.86844803]
[1755253045836,0.06,195.47,195.46,51.24621557]
[1755253046037,0.06,195.47,195.46,60.21680823]
[1755253046243,0.06,195.48,195.46,60.21680823]
[1755253046244,0.06,195.48,195.47,15.10621557]
[1755253046457,0.06,195.48,195.47,24.07680823]
[1755253047240,0.06,195.48,195.47,29.19268278]
[1755253047570,0.77,195.55,195.5,26.0]
[1755253047869,0.77,195.55,195.5,70.39059266]
[1755253048238,0.71,195.54,195.5,70.39059266]
[1755253049461,5.82410227,195.54,195.5,70.39059266]
[1755253050272,5.11410227,195.54,195.5,70.39059266]
[1755253050444,0.71,195.53,195.5,70.39059266]
[1755253050762,5.83382477,195.55,195.5,86.21680823]
[1755253050956,5.11404539,195.54,195.5,86.21680823]
[1755253051265,0.72,195.51,195.5,34.25059266]
[1755253051655,0.72,195.51,195.5,70.37059266]
[1755253052458,5.83482788,195.51,195.42,0.67]
[1755253052662,0.66,195.5,195.47,8.25059266]
[1755253052851,4.07544482,195.5,195.47,8.25059266]
[1755253053051,0.66,195.49,195.47,44.37059266]
[1755253053266,3.41544482,195.5,195.48,8.25059266]
[1755253053456,8.53053433,195.5,195.49,8.25059266]
[1755253053658,3.41544482,195.5,195.49,45.06059266]
[1755253053866,3.41544482,195.5,195.49,44.39059266]
[1755253054367,3.41544482,195.5,195.49,45.06059266]
[1755253054574,3.41544482,195.5,195.49,60.16680823]
[1755253055669,0.06,195.51,195.49,60.16680823]
[1755253055872,0.06,195.51,195.5,8.25059266]
[1755253057569,0.06,195.51,195.5,50.02680823]
[1755253057871,0.06,195.55,195.54,26.0]
[1755253058054,0.06,195.55,195.54,70.39059266]
[1755253058455,0.06,195.55,195.54,71.06059266]
[1755253058860,0.06,195.55,195.54,70.39059266]
[1755253060682,0.06,195.55,195.54,86.16680823]
[1755253061175,0.06,195.55,195.54,91.28085139]
[1755253061381,0.06,195.55,195.54,91.7922557]
[1755253062381,0.06,195.55,195.54,91.28085139]
[1755253065583,0.06,195.57,195.55,15.10621557]
[1755253065758,0.06,195.57,195.56,44.37059266]
[1755253065955,0.06,195.59,195.58,41.10621557]
[1755253066185,0.06,195.59,195.58,90.58980546]
[1755253066387,0.06,195.59,195.58,100.02169784]
[1755253066565,0.1,195.6,195.58,100.02169784]
[1755253066566,0.1,195.6,195.59,8.25059266]
[1755253066761,0.06,195.61,195.6,15.10621557]
[1755253066962,0.06,195.61,195.6,60.14680823]
[1755253067163,0.06,195.61,195.6,69.36781453]
[1755253067361,0.1,195.65,195.63,26.0]
[1755253067586,0.1,195.65,195.64,44.39059266]
[1755253067886,0.76,195.65,195.64,44.39059266]
[1755253068760,0.1,195.65,195.64,44.39059266]
[1755253070689,0.66,195.69,195.67,26.0]
[1755253070873,0.66,195.69,195.64,60.16680823]
[1755253070874,0.66,195.69,195.68,44.37059266]
[1755253071996,4.27680085,195.71,195.68,44.37059266]
[1755253072196,0.66,195.71,195.7,8.25059266]
[1755253072379,0.66,195.71,195.7,44.35059266]
[1755253073485,4.06193122,195.71,195.7,44.35059266]
[1755253075790,9.17153216,195.71,195.7,44.35059266]
[1755253076101,4.06193122,195.71,195.7,44.35059266]
[1755253076594,9.17153216,195.71,195.66,26.0]
[1755253076794,0.66,195.7,195.69,8.25059266]
[1755253076979,5.76986203,195.7,195.69,44.33059266]
[1755253077178,9.17179325,195.7,195.69,44.33059266]
[1755253077775,3.40193122,195.7,195.69,44.33059266]
[1755253079794,9.17179325,195.7,195.69,44.33059266]
[1755253080004,9.17179325,195.7,195.66,26.0]
[1755253080179,8.51179325,195.7,195.69,8.25059266]
[1755253080510,8.51179325,195.7,195.69,44.33059266]
[1755253080809,3.40193122,195.7,195.69,44.33059266]
[1755253081603,8.51179325,195.7,195.69,44.33059266]
[1755253081807,9.17179325,195.7,195.69,44.33059266]
[1755253082104,3.40193122,195.7,195.69,44.33059266]
[1755253082307,8.51179325,195.7,195.69,44.33059266]
[1755253083004,3.40193122,195.7,195.69,44.33059266]
[1755253083306,4.06193122,195.7,195.69,44.33059266]
[1755253083684,9.17179325,195.7,195.69,44.33059266]
[1755253083880,9.17179325,195.7,195.69,36.08]
[1755253084102,9.17179325,195.7,195.69,44.33059266]
[1755253086314,9.17179325,195.7,195.69,8.25059266]
[1755253087795,9.17179325,195.7,195.68,8.25059266]
[1755253088005,8.51179325,195.7,195.69,8.25059266]
[1755253088200,3.40193122,195.7,195.69,44.33059266]
[1755253088702,4.06193122,195.7,195.69,8.25059266]
[1755253088902,9.17179325,195.7,195.69,8.25059266]
[1755253090597,9.17179325,195.7,195.68,44.31059266]
[1755253090813,9.17179325,195.7,195.65,8.25059266]
[1755253090814,0.66,195.69,195.65,8.25059266]
[1755253090982,0.66,195.69,195.66,36.06]
[1755253091312,0.66,195.68,195.67,8.25059266]
[1755253091610,9.17231552,195.68,195.67,8.25059266]
[1755253091782,3.40193122,195.68,195.67,8.97059266]
[1755253092108,3.40193122,195.68,195.67,8.25059266]
[1755253092692,8.51231552,195.68,195.67,8.25059266]
[1755253092892,9.17231552,195.68,195.67,8.25059266]
[1755253093904,8.51231552,195.68,195.67,8.25059266]
[1755253094105,9.17231552,195.68,195.67,8.25059266]
[1755253094715,21.94827627,195.68,195.63,0.03]
[1755253094905,8.25059266,195.66,195.63,0.03]
[1755253095312,0.66,195.65,195.63,0.03]
[1755253095607,5.11142915,195.64,195.63,0.03]
[1755253095912,16.9061146,195.64,195.63,1e-08]
[1755253096116,17.5661146,195.64,195.63,1e-08]
[1755253096417,9.31552194,195.64,195.63,1e-08]
[1755253096602,9.17336037,195.64,195.63,1e-08]
[1755253097323,8.51336037,195.64,195.63,1e-08]
[1755253097623,8.51336037,195.64,195.63,8.97059267]
[1755253097830,3.40193122,195.64,195.63,8.25059267]
[1755253098396,3.40193122,195.64,195.63,8.97059267]
[1755253098604,3.40193122,195.64,195.63,50.07680824]
[1755253098809,3.40193122,195.64,195.63,29.18849867]
[1755253099027,3.40193122,195.64,195.63,29.69966771]
[1755253099297,3.40193122,195.64,195.63,29.18849867]
[1755253099601,3.40193122,195.64,195.63,29.69966771]
[1755253099804,4.27680085,195.69,195.65,26.0]
[1755253100010,5.16961127,195.71,195.68,8.25059266]
[1755253100211,5.16961127,195.71,195.7,8.25059266]
[1755253101020,0.06,195.71,195.7,8.25059266]
[1755253102298,0.06,195.71,195.7,8.97059266]
[1755253102726,0.06,195.71,195.7,24.07680823]
[1755253103831,0.06,195.71,195.7,29.18667026]
[1755253104002,0.06,195.71,195.7,24.07680823]
[1755253104617,0.06,195.71,195.7,29.18667026]
[1755253104835,0.06,195.71,195.7,24.07680823]
[1755253106245,0.06,195.71,195.7,8.25059266]
[1755253106551,0.06,195.71,195.7,44.35059266]
[1755253106715,0.06,195.71,195.7,45.07059266]
[1755253107431,0.06,195.71,195.7,60.17680823]
[1755253108011,0.72,195.71,195.65,0.72]
[1755253108217,5.82960094,195.71,195.7,8.25059266]
[1755253108432,0.06,195.71,195.7,44.35059266]
[1755253109913,5.16960094,195.71,195.7,44.35059266]
[1755253110113,5.16960094,195.71,195.63,15.82621558]
[1755253110114,5.82960094,195.71,195.63,15.82621558]
[1755253110319,0.66,195.7,195.66,8.25059266]
[1755253110513,0.66,195.7,195.64,36.12]
[1755253110514,8.25059266,195.69,195.63,8.25059267]
[1755253110730,0.66,195.69,195.68,8.25059266]
[1755253111843,0.66,195.69,195.66,8.25059266]
[1755253112045,0.66,195.69,195.64,70.37059266]
[1755253112228,5.11064547,195.67,195.64,44.37059266]
[1755253112426,0.68,195.66,195.64,44.37059266]
[1755253112634,0.68,195.66,195.65,8.25059266]
[1755253112834,0.68,195.65,195.64,36.12]
[1755253113062,8.93059266,195.65,195.63,1e-08]
[1755253113366,0.68,195.65,195.63,1e-08]
[1755253113546,3.43071772,195.64,195.63,1e-08]
[1755253113754,4.11071772,195.64,195.63,1e-08]
[1755253114158,12.50347195,195.64,195.63,1e-08]
[1755253114341,17.6149011,195.64,195.63,1e-08]
[1755253115123,9.22214687,195.64,195.63,1e-08]
[1755253115356,17.6149011,195.64,195.63,1e-08]
[1755253115732,9.36430844,195.64,195.63,1e-08]
[1755253115934,17.6149011,195.64,195.63,1e-08]
[1755253116731,9.36430844,195.64,195.63,1e-08]
[1755253117674,17.6149011,195.64,195.63,1e-08]
[1755253118465,5.11195174,195.62,195.59,0.03]
[1755253118765,0.14216157,195.6,195.59,0.03]
[1755253119137,0.82216157,195.6,195.59,0.03]
[1755253120249,4.25287929,195.6,195.59,0.03]
[1755253121070,17.61594638,195.6,195.59,0.03]
[1755253122073,0.14216157,195.59,195.57,0.03]
[1755253122369,45.23275423,195.58,195.57,1e-08]
[1755253122742,48.66347195,195.58,195.57,1e-08]
[1755253123243,53.77646918,195.58,195.57,1e-08]
[1755253124972,45.52587652,195.58,195.57,1e-08]
[1755253126375,53.77646918,195.58,195.57,1e-08]
[1755253130192,85.82496718,195.58,195.57,1e-08]
[1755253130685,0.14216157,195.55,195.51,0.03]
[1755253130893,8.39275423,195.52,195.51,0.03]
[1755253131414,9.07275423,195.52,195.51,0.03]
[1755253132169,14.18732051,195.52,195.51,0.03]
[1755253133272,43.61803823,195.52,195.51,0.03]
[1755253133596,79.73803823,195.52,195.51,0.03]
[1755253134693,53.73803823,195.52,195.51,0.03]
[1755253137099,53.73803823,195.52,195.47,0.03]
[1755253137478,0.14216157,195.5,195.47,0.03]
[1755253137698,36.24216157,195.5,195.47,0.03]
[1755253137896,44.49275423,195.5,195.47,0.03]
[1755253138602,53.03856146,195.5,195.47,0.03]
[1755253142405,44.7879688,195.5,195.47,0.03]
[1755253142590,53.03856146,195.5,195.47,0.03]
[1755253143503,49.60784374,195.5,195.47,0.03]
[1755253144298,41.35725108,195.5,195.47,0.03]
[1755253144897,41.35725108,195.5,195.47,0.72]
[1755253146002,5.11456628,195.52,195.49,19.43698178]
[1755253146202,5.11404316,195.54,195.51,8.25059266]
[1755253146416,9.39060247,195.55,195.53,8.25059266]
[1755253146588,4.27680085,195.55,195.54,8.25059266]
[1755253146782,0.14216157,195.56,195.54,8.94059266]
[1755253147010,0.14216157,195.56,195.55,0.69]
[1755253147427,0.14216157,195.56,195.54,8.25059266]
[1755253147584,5.25575448,195.56,195.55,0.69]
[1755253147914,8.64967548,195.56,195.55,0.69]
[1755253148089,8.64967548,195.56,195.54,8.25059266]
[1755253148409,8.64967548,195.56,195.55,0.69]
[1755253149303,8.64967548,195.56,195.53,8.25059266]
[1755253149687,8.64967548,195.56,195.53,8.94059266]
[1755253149889,8.64967548,195.56,195.54,0.69]
[1755253150197,5.11321272,195.58,195.55,8.94059266]
[1755253150402,5.11321272,195.58,195.56,8.94059266]
[1755253150720,5.11321272,195.58,195.56,0.69]
[1755253151203,5.11321272,195.58,195.57,8.94059266]
[1755253151723,41.21280732,195.59,195.57,8.94059266]
[1755253151910,5.25496889,195.59,195.58,0.69]
[1755253152419,5.25496889,195.59,195.57,8.25059266]
[1755253152729,5.25496889,195.59,195.56,8.25059266]
[1755253153027,8.39275423,195.58,195.52,34.25059266]
[1755253153204,5.11378164,195.55,195.51,8.94059266]
[1755253153405,5.11378164,195.55,195.52,8.94059266]
[1755253153604,5.11378164,195.55,195.52,8.25059266]
[1755253153814,5.11378164,195.55,195.53,0.69]
[1755253154016,5.11378164,195.55,195.53,8.94059266]
[1755253154617,3.40786095,195.54,195.53,8.94059266]
[1755253154814,3.40786095,195.54,195.53,0.69]
[1755253155117,3.40786095,195.54,195.53,8.94059266]
[1755253156107,3.40786095,195.54,195.53,34.94059266]
[1755253156922,5.11358177,195.56,195.53,34.94059266]
[1755253157228,5.11358177,195.56,195.55,8.25059266]
[1755253157422,5.11299723,195.58,195.55,8.25059266]
[1755253157632,5.11299723,195.58,195.55,8.94059266]
[1755253157928,5.11299723,195.58,195.56,8.25059266]
[1755253158334,3.42114427,195.57,195.56,8.25059266]
[1755253159732,8.53440294,195.57,195.56,8.25059266]
[1755253159936,8.53440294,195.57,195.53,26.0]
[1755253160107,8.53440294,195.57,195.53,34.25059266]
[1755253160108,9.23440294,195.57,195.53,34.25059266]
[1755253160511,8.53440294,195.57,195.54,8.25059266]
[1755253160830,3.42114427,195.56,195.54,8.25059266]
[1755253161231,3.42114427,195.56,195.55,8.25059266]
[1755253161631,8.53466441,195.56,195.55,8.25059266]
[1755253162935,8.53466441,195.56,195.55,8.94059266]
[1755253163928,8.53466441,195.56,195.55,0.69]
[1755253164127,8.53466441,195.56,195.55,8.94059266]
[1755253164327,3.42114427,195.56,195.55,8.94059266]
[1755253166118,3.42114427,195.56,195.55,8.25059266]
[1755253167736,8.53466441,195.56,195.55,8.25059266]
[1755253168336,8.53466441,195.56,195.53,26.69]
[1755253168635,0.7,195.55,195.53,26.0]
[1755253168826,0.7,195.55,195.51,8.25059266]
[1755253169227,3.42114427,195.55,195.52,0.69]
[1755253169413,3.42114427,195.55,195.54,8.25059266]
[1755253169837,3.42114427,195.55,195.54,8.94059266]
[1755253170542,5.17325566,195.58,195.54,8.94059266]
[1755253170844,5.17325566,195.58,195.57,8.25059266]
[1755253171042,0.06,195.58,195.57,8.25059266]
[1755253171230,0.06,195.58,195.57,8.94059266]
[1755253171430,3.48483037,195.58,195.57,8.94059266]
[1755253171931,8.5978276,195.58,195.57,8.25059266]
[1755253174420,3.48483037,195.58,195.57,8.94059266]
[1755253174925,0.06,195.58,195.57,8.94059266]
[1755253175229,0.06,195.58,195.57,8.25059266]
[1755253176244,0.76,195.58,195.56,8.25059266]
[1755253176456,0.06,195.58,195.56,8.25059266]
[1755253176647,0.06,195.58,195.57,8.25059266]
[1755253177046,3.48246101,195.58,195.57,8.25059266]
[1755253177435,8.59545824,195.58,195.57,8.25059266]
[1755253177633,3.48246101,195.58,195.57,8.94059266]
[1755253178150,0.06,195.58,195.57,8.94059266]
[1755253179147,0.06,195.58,195.57,8.25059266]
[1755253179351,5.17299723,195.58,195.57,8.25059266]
[1755253179555,0.06,195.58,195.57,8.25059266]
[1755253179846,0.06,195.58,195.57,8.94059266]
[1755253180244,0.06,195.58,195.56,34.25059266]
[1755253181446,0.06,195.58,195.57,8.25059266]
[1755253183350,0.06,195.58,195.56,26.0]
[1755253183556,0.76,195.58,195.56,34.25059266]
[1755253183857,0.06,195.58,195.56,34.25059266]
[1755253184057,0.06,195.58,195.57,8.25059266]
[1755253185455,8.60065145,195.58,195.57,8.25059266]
[1755253187045,9.30065145,195.58,195.56,34.25059266]
[1755253187538,8.60065145,195.58,195.56,26.0]
[1755253187741,0.7,195.57,195.56,26.0]
[1755253187951,4.12765422,195.57,195.56,26.0]
[1755253188161,3.42765422,195.57,195.56,26.0]
[1755253188657,3.42765422,195.57,195.56,34.94059266]
[1755253189554,8.54091289,195.57,195.56,34.25059266]
[1755253193556,8.60091289,195.57,195.56,34.25059266]
[1755253194760,8.60091289,195.57,195.56,34.94059266]
[1755253194962,3.48765422,195.57,195.56,34.94059266]
[1755253195969,3.48765422,195.57,195.56,71.02059266]
[1755253197266,3.48765422,195.57,195.56,71.02059266]
[1755253200364,3.48765422,195.57,195.56,76.1341128]
[1755253200563,0.06,195.59,195.56,84.38470546]
[1755253200867,4.33680085,195.62,195.61,26.0]
[1755253201165,4.33680085,195.62,195.61,75.44280573]
[1755253201372,4.33680085,195.62,195.61,76.09280573]
[1755253201570,4.33680085,195.62,195.61,80.14080266]
[1755253201774,0.06,195.62,195.61,80.14080266]
[1755253201952,0.06,195.63,195.61,80.14080266]
[1755253202153,0.06,195.63,195.62,8.90059266]
[1755253202750,4.27680085,195.67,195.65,26.0]
[1755253202960,0.06,195.7,195.66,44.98059266]
[1755253203159,0.06,195.7,195.69,8.25059266]
[1755253203455,0.06,195.7,195.69,44.33059266]
[1755253203855,0.06,195.7,195.69,44.98059266]
[1755253204966,0.06,195.7,195.69,50.60172812]
[1755253205167,0.06,195.7,195.69,50.09071581]
[1755253205553,0.06,195.71,195.69,50.09071581]
[1755253205751,0.06,195.71,195.7,8.90059266]
[1755253206870,0.06,195.71,195.7,14.01045469]
[1755253209679,0.06,195.71,195.7,8.90059266]
[1755253209862,0.06,195.71,195.7,8.25059266]
[1755253210177,0.78,195.71,195.7,70.31059266]
[1755253210354,0.06,195.71,195.7,70.31059266]
[1755253211175,0.78,195.71,195.7,62.06]
[1755253211377,0.78,195.71,195.7,70.31059266]
[1755253211676,5.88960094,195.71,195.7,62.06]
[1755253211875,5.88960094,195.71,195.7,26.0]
[1755253212078,5.88960094,195.71,195.68,8.25059266]
[1755253212257,0.72,195.7,195.67,36.06]
[1755253213255,0.14216157,195.69,195.67,36.06]
[1755253213455,0.72,195.68,195.64,36.06]
[1755253213655,5.11090667,195.66,195.62,0.03]
[1755253213993,0.72,195.65,195.63,8.25059266]
[1755253214159,5.11090667,195.66,195.64,8.25059266]
[1755253214361,5.1106637,195.67,195.65,8.25059266]
[1755253214560,5.82986203,195.7,195.66,8.25059266]
[1755253214758,5.10986203,195.7,195.69,8.25059266]
[1755253214966,5.16965325,195.71,195.69,8.25059266]
[1755253215163,0.06,195.71,195.7,8.25059266]
[1755253216379,0.06,195.71,195.7,44.96059266]
[1755253216882,0.06,195.71,195.7,44.31059266]
[1755253217378,0.06,195.71,195.7,44.96059266]
[1755253218987,0.06,195.72,195.7,50.58144089]
[1755253219276,0.06,195.72,195.71,8.90059266]
[1755253219476,0.06,195.72,195.71,8.25059266]
[1755253219857,0.06,195.72,195.71,44.31059266]
[1755253220455,0.06,195.72,195.71,44.96059266]
[1755253221985,0.06,195.72,195.71,50.0701936]
[1755253222582,0.06,195.73,195.71,58.32078626]
[1755253222783,0.06,195.73,195.72,17.15118532]
[1755253225276,0.06,195.73,195.72,22.26052519]
[1755253225790,0.06,195.73,195.72,14.00993253]
[1755253225964,0.06,195.73,195.72,8.90059266]
[1755253227871,0.06,195.73,195.72,44.29059266]
[1755253228685,0.06,195.73,195.72,22.26052519]
[1755253229006,0.06,195.73,195.72,58.30052519]
[1755253230877,0.06,195.73,195.72,50.04993253]
[1755253231073,0.06,195.73,195.72,44.29059266]
[1755253231515,0.76,195.73,195.72,36.04]
[1755253231683,0.76,195.73,195.72,44.29059266]
[1755253231878,0.06,195.73,195.72,44.29059266]
[1755253233996,0.06,195.73,195.72,44.98059266]
[1755253234305,0.06,195.73,195.72,58.34052519]
[1755253234612,0.06,195.75,195.74,26.0]
[1755253234910,0.06,195.75,195.74,70.29059266]
[1755253235100,0.06,195.75,195.74,70.98059266]
[1755253236111,0.06,195.75,195.74,86.08680823]
[1755253236617,0.06,195.75,195.74,91.19562604]
[1755253240411,0.06,195.77,195.76,23.35680823]
[1755253240614,0.06,195.77,195.76,59.39680823]
[1755253241000,0.06,195.77,195.76,60.08680823]
[1755253241817,0.06,195.77,195.76,65.1951041]
[1755253243996,0.06,195.79,195.78,41.10621557]
[1755253244307,0.06,195.79,195.78,85.39680823]
[1755253244612,0.06,195.79,195.78,86.08680823]
[1755253245205,0.06,195.79,195.78,91.19458226]
[1755253245406,0.06,195.79,195.78,95.3238295]
[1755253246707,0.7,195.84,195.78,95.3238295]
[1755253246912,5.10577268,195.86,195.83,8.25059266]
[1755253247220,5.10577268,195.86,195.85,8.25059266]
[1755253247518,5.10577268,195.86,195.85,44.29059266]
[1755253247736,3.42565505,195.86,195.85,44.29059266]
[1755253247904,4.12565505,195.86,195.85,44.29059266]
[1755253248104,3.42565505,195.86,195.85,44.29059266]
[1755253248430,3.42565505,195.86,195.85,36.04]